[Event "African Championship"]
[Site "followchess.com"]
[Date "2021.05.23"]
[Round "5"]
[White "Fawzy, Adham"]
[Black "Talbi, Chafik"]
[Result "1-0"]
[ECO "B68"]
[WhiteElo "2473"]
[BlackElo "2244"]
[PlyCount "95"]
[EventDate "2021.??.??"]
[TimeControl "7200+30"]
[WhiteClock "0:28:59"]
[BlackClock "0:49:00"]

1. e4 {[%emt 0:29:33]} c5 {[%emt 0:33:33]} 2. Nf3 {[%emt 0:00:21]} d6 {[%emt 0:
01:26]} 3. d4 {[%emt 0:00:11]} cxd4 {[%emt 0:00:10]} 4. Nxd4 {[%emt 0:00:03]}
Nf6 {[%emt 0:00:07]} 5. Nc3 {[%emt 0:00:06]} Nc6 {[%emt 0:00:04]} 6. Bg5 {
[%emt 0:00:06]} e6 {[%emt 0:00:32]} 7. Qd2 {[%emt 0:00:02]} a6 {[%emt 0:00:14]}
8. O-O-O {[%emt 0:00:50]} Bd7 {[%emt 0:00:52]} 9. f4 {[%emt 0:03:58]} Be7 {
[%emt 0:11:12]} 10. Nf3 {[%emt 0:06:55]} b5 {[%emt 0:04:21]} 11. e5 {[%emt 0:
11:15]} b4 {[%emt 0:00:45]} 12. exd6 {[%emt 0:08:36]} bxc3 {[%emt 0:02:44]} 13.
Qxc3 {[%emt 0:00:17]} Bf8 14. Bc4 Ne4 {[%emt 0:08:43]} 15. Qe3 {[%emt 0:11:45]}
Nxg5 {[%emt 0:00:30]} 16. Nxg5 {[%emt 0:01:05]} Rb8 {[%emt 0:25:52]} 17. f5 {
[%emt 0:21:17]} Qb6 {[%emt 0:03:26]} 18. Qc3 {[%emt 0:08:16]} Qa5 {[%emt 0:09:
28]} 19. Qxa5 {[%emt 0:04:35]} Nxa5 {[%emt 0:00:08]} 20. fxe6 {[%emt 0:00:14]}
Nxc4 {[%emt 0:03:16]} 21. exd7+ {[%emt 0:00:24]} Kxd7 {[%emt 0:00:12]} 22. Nxf7
{[%emt 0:00:02]} Rg8 23. Rd4 {[%emt 0:01:13]} Nxd6 {[%emt 0:04:08]} 24. Rhd1 {
[%emt 0:00:25]} Rb6 {[%emt 0:05:12]} 25. c4 {[%emt 0:00:02]} Rc6 {[%emt 0:10:
26]} 26. Ne5+ {[%emt 0:00:14]} Kc7 {[%emt 0:00:04]} 27. Nxc6 {[%emt 0:00:04]}
Kxc6 {[%emt 0:00:02]} 28. b4 {[%emt 0:03:56]} Be7 {[%emt 0:01:43]} 29. c5 {
[%emt 0:03:36]} Nb5 {[%emt 0:01:29]} 30. Re4 {[%emt 0:00:18]} Bg5+ {[%emt 0:01:
22]} 31. Kc2 {[%emt 0:00:05]} Rf8 {[%emt 0:02:11]} 32. a4 {[%emt 0:01:05]} Rf2+
{[%emt 0:00:21]} 33. Kb3 {[%emt 0:00:01]} Nc7 {[%emt 0:00:28]} 34. Rd6+ {
[%emt 0:01:06]} Kb7 {[%emt 0:00:07]} 35. c6+ {[%emt 0:00:22]} Ka7 {[%emt 0:00:
49]} 36. Rd7 {[%emt 0:00:02]} Kb8 {[%emt 0:01:01]} 37. Rxg7 {[%emt 0:01:02]}
Rxg2 {[%emt 0:00:44]} 38. b5 {[%emt 0:00:14]} axb5 {[%emt 0:00:21]} 39. axb5 {
[%emt 0:00:05]} Rb2+ {[%emt 0:00:44]} 40. Kxb2 {[%emt 0:00:00]} Bf6+ {[%emt 0:
00:00]} 41. Kb3 {[%emt 0:00:00]} Bxg7 {[%emt 0:00:00]} 42. b6 {[%emt 0:00:00]}
Bf6 {[%emt 0:00:00]} 43. Kc4 {[%emt 0:00:00]} Bd8 {[%emt 0:00:00]} 44. bxc7+ {
[%emt 0:00:00]} Kxc7 {[%emt 0:00:00]} 45. Kd5 {[%emt 0:00:00]} Bg5 {[%emt 0:00:
00]} 46. h4 {[%emt 0:00:00]} Bd8 {[%emt 0:00:00]} 47. h5 {[%emt 0:00:00]} h6 {
[%emt 0:00:00]} 48. Rg4 {[%emt 0:00:00]} 1-0

[Event "African Championship"]
[Site "followchess.com"]
[Date "2021.05.23"]
[Round "5"]
[White "Mwali, Chitumbo"]
[Black "Kayonde, Andrew"]
[Result "1-0"]
[ECO "A13"]
[WhiteElo "2285"]
[BlackElo "2399"]
[PlyCount "59"]
[EventDate "2021.??.??"]
[TimeControl "7200+30"]
[WhiteClock "0:20:34"]
[BlackClock "0:02:36"]

1. c4 {[%emt 0:29:31]} e6 {[%emt 0:32:14]} 2. g3 {[%emt 0:01:01]} d5 {[%emt 0:
00:12]} 3. Bg2 {[%emt 0:01:37]} dxc4 {[%emt 0:00:37]} 4. Nf3 {[%emt 0:00:39]}
a6 {[%emt 0:00:28]} 5. O-O {[%emt 0:00:50]} Nf6 {[%emt 0:00:39]} 6. Na3 {
[%emt 0:03:34]} b5 {[%emt 0:02:13]} 7. d3 {[%emt 0:04:35]} cxd3 {[%emt 0:05:30]
} 8. Ne5 {[%emt 0:03:23]} Ra7 {[%emt 0:00:09]} 9. Be3 {[%emt 0:17:12]} c5 {
[%emt 0:00:32]} 10. Nxd3 Rd7 {[%emt 0:17:32]} 11. Qc2 {[%emt 0:43:43]} c4 {
[%emt 0:01:38]} 12. Ne5 {[%emt 0:01:02]} Rd6 {[%emt 0:04:04]} 13. Rad1 {
[%emt 0:04:34]} Rxd1 {[%emt 0:08:16]} 14. Rxd1 {[%emt 0:00:11]} Nd5 {[%emt 0:
00:26]} 15. Bf4 {[%emt 0:01:45]} Bxa3 {[%emt 0:08:49]} 16. e4 {[%emt 0:02:56]}
Bd6 {[%emt 0:09:28]} 17. exd5 {[%emt 0:00:21]} Qc7 {[%emt 0:00:30]} 18. Nxf7 {
[%emt 0:00:37]} Kxf7 {[%emt 0:07:40]} 19. dxe6+ {[%emt 0:04:41]} Bxe6 {[%emt 0:
00:10]} 20. Rxd6 {[%emt 0:00:04]} Qc8 {[%emt 0:00:07]} 21. Rb6 {[%emt 0:00:59]}
Nd7 {[%emt 0:01:56]} 22. Rxe6 {[%emt 0:04:19]} Kxe6 {[%emt 0:00:08]} 23. Qe4+ {
[%emt 0:00:52]} Kf7 {[%emt 0:03:46]} 24. Qd5+ {[%emt 0:01:09]} Ke8 {[%emt 0:00:
11]} 25. Bh3 {[%emt 0:00:58]} h6 {[%emt 0:00:42]} 26. Qe6+ {[%emt 0:01:02]} Kd8
{[%emt 0:00:14]} 27. Bd2 {[%emt 0:00:25]} Qb7 {[%emt 0:04:58]} 28. Ba5+ {
[%emt 0:00:17]} Kc8 {[%emt 0:00:42]} 29. Bg2 {[%emt 0:00:05]} Qa7 {[%emt 0:00:
05]} 30. Qc6+ {[%emt 0:00:02]} 1-0

[Event "African Championship"]
[Site "followchess.com"]
[Date "2021.05.23"]
[Round "5"]
[White "Rakotomaharo, Fy Antenaina"]
[Black "Adly, Ahmed"]
[Result "1/2-1/2"]
[ECO "B12"]
[WhiteElo "2429"]
[BlackElo "2615"]
[PlyCount "199"]
[EventDate "2021.??.??"]
[TimeControl "7200+30"]
[WhiteClock "0:05:01"]
[BlackClock "0:04:40"]

1. e4 {[%emt 0:29:35]} c6 {[%emt 0:29:34]} 2. d4 {[%emt 0:00:18]} d5 {[%emt 0:
00:08]} 3. e5 {[%emt 0:00:05]} Bf5 {[%emt 0:00:15]} 4. h4 {[%emt 0:00:06]} h5 {
[%emt 0:00:17]} 5. Bd3 {[%emt 0:00:06]} Bxd3 {[%emt 0:00:21]} 6. Qxd3 {[%emt 0:
00:05]} e6 {[%emt 0:00:11]} 7. Bg5 {[%emt 0:00:07]} Qa5+ {[%emt 0:00:29]} 8.
Nd2 {[%emt 0:00:06]} Qa6 {[%emt 0:02:51]} 9. c4 {[%emt 0:00:06]} dxc4 {[%emt 0:
04:39]} 10. Nxc4 {[%emt 0:00:06]} Nh6 {[%emt 0:00:05]} 11. Nf3 {[%emt 0:04:20]}
Nd7 {[%emt 0:01:15]} 12. O-O {[%emt 0:02:08]} Nb6 {[%emt 0:00:54]} 13. Rfc1 {
[%emt 0:06:37]} Nf5 {[%emt 0:02:40]} 14. Qb3 {[%emt 0:06:01]} Nd5 {[%emt 0:04:
54]} 15. Ne3 {[%emt 0:06:46]} Nfe7 {[%emt 0:19:05]} 16. Nd2 {[%emt 0:21:56]}
Qb6 {[%emt 0:24:21]} 17. Nec4 {[%emt 0:07:26]} Qxb3 {[%emt 0:00:42]} 18. Nd6+ {
[%emt 0:00:06]} Kd7 {[%emt 0:00:30]} 19. Nxb3 {[%emt 0:00:05]} Nf5 {[%emt 0:08:
45]} 20. Nc5+ {[%emt 0:01:47]} Kc7 {[%emt 0:00:04]} 21. Nxf7 {[%emt 0:00:05]}
Bxc5 {[%emt 0:00:58]} 22. dxc5 {[%emt 0:01:19]} Rhf8 {[%emt 0:01:43]} 23. Nd6 {
[%emt 0:00:16]} b6 {[%emt 0:06:49]} 24. Ne4 {[%emt 0:08:36]} Kd7 {[%emt 0:02:
32]} 25. Re1 {[%emt 0:03:59]} b5 {[%emt 0:03:12]} 26. Rad1 {[%emt 0:00:38]} a5
{[%emt 0:00:22]} 27. Rd3 {[%emt 0:01:53]} a4 {[%emt 0:00:55]} 28. Ng3 {[%emt 0:
04:20]} Nxg3 {[%emt 0:01:29]} 29. Rxg3 {[%emt 0:00:06]} Ke8 {[%emt 0:01:46]}
30. Bd2 {[%emt 0:04:37]} Ra7 {[%emt 0:00:01]} 31. Rg5 {[%emt 0:01:50]} Rh8 {
[%emt 0:00:02]} 32. Re4 {[%emt 0:03:16]} Rd7 {[%emt 0:00:55]} 33. Rd4 {[%emt 0:
00:40]} Kf7 {[%emt 0:00:51]} 34. Bc3 {[%emt 0:03:25]} Rdd8 {[%emt 0:00:59]} 35.
Ba5 {[%emt 0:00:31]} Ra8 {[%emt 0:00:28]} 36. Bd2 {[%emt 0:00:19]} Rad8 {
[%emt 0:00:32]} 37. Ba5 {[%emt 0:01:52]} Rdf8 {[%emt 0:00:01]} 38. Rg3 {
[%emt 0:05:54]} Kg8 {[%emt 0:01:48]} 39. Bd2 {[%emt 0:00:51]} Rf5 {[%emt 0:00:
27]} 40. Re4 {[%emt 0:00:00]} Kh7 {[%emt 0:00:00]} 41. Rd3 {[%emt 0:00:00]}
Rhf8 {[%emt 0:00:00]} 42. Re2 {[%emt 0:00:00]} R5f7 {[%emt 0:00:00]} 43. Kf1 {
[%emt 0:00:00]} Ra8 {[%emt 0:00:00]} 44. Ke1 {[%emt 0:00:00]} Rd7 {[%emt 0:00:
00]} 45. Re4 {[%emt 0:00:00]} Raa7 {[%emt 0:00:00]} 46. Ke2 {[%emt 0:00:00]}
Rdb7 {[%emt 0:00:00]} 47. a3 {[%emt 0:00:00]} Ra8 {[%emt 0:00:00]} 48. Rg3 {
[%emt 0:00:00]} Rf8 {[%emt 0:00:00]} 49. Rd3 {[%emt 0:00:00]} Rbf7 {[%emt 0:00:
00]} 50. f3 {[%emt 0:00:00]} Rd7 {[%emt 0:00:00]} 51. Bg5 {[%emt 0:00:00]} Kg6
{[%emt 0:00:00]} 52. Rdd4 {[%emt 0:00:00]} Ra8 {[%emt 0:00:00]} 53. Bd2 {
[%emt 0:00:00]} Rad8 {[%emt 0:00:00]} 54. Kd3 {[%emt 0:00:00]} Kf7 {[%emt 0:00:
00]} 55. Bg5 {[%emt 0:00:00]} Rh8 {[%emt 0:00:00]} 56. Bd2 {[%emt 0:00:00]} Ke8
{[%emt 0:00:00]} 57. Ke2 {[%emt 0:00:13]} Kd8 {[%emt 0:00:00]} 58. Kf2 {
[%emt 0:02:21]} Kc8 {[%emt 0:00:00]} 59. Re1 {[%emt 0:00:29]} Kb7 {[%emt 0:00:
00]} 60. Rh1 {[%emt 0:01:04]} Ka6 {[%emt 0:00:00]} 61. Rh3 {[%emt 0:01:12]} Rf8
{[%emt 0:03:12]} 62. Rg3 {[%emt 0:02:09]} Rf5 {[%emt 0:00:02]} 63. Rg5 {
[%emt 0:02:03]} Rxg5 {[%emt 0:01:02]} 64. hxg5 {[%emt 0:01:07]} g6 {[%emt 0:01:
00]} 65. Ke2 {[%emt 0:01:26]} Rf7 {[%emt 0:01:13]} 66. Rh4 {[%emt 0:00:52]} Rf5
{[%emt 0:01:10]} 67. Re4 {[%emt 0:03:08]} Kb7 68. Kd3 {[%emt 0:00:31]} Rf7 {
[%emt 0:02:46]} 69. Rh4 {[%emt 0:02:08]} Ne7 {[%emt 0:00:38]} 70. Rh3 {[%emt 0:
01:04]} Nf5 {[%emt 0:00:26]} 71. g4 {[%emt 0:00:30]} Rd7+ {[%emt 0:00:25]} 72.
Kc3 {[%emt 0:00:10]} Ng7 {[%emt 0:02:15]} 73. gxh5 {[%emt 0:00:26]} Nxh5 {
[%emt 0:00:11]} 74. f4 {[%emt 0:00:12]} Kc8 {[%emt 0:03:09]} 75. Be3 {[%emt 0:
01:04]} Kc7 {[%emt 0:01:33]} 76. Kc2 {[%emt 0:00:38]} Rd5 {[%emt 0:01:26]} 77.
Rh2 {[%emt 0:01:24]} Kd7 {[%emt 0:01:27]} 78. Kc3 {[%emt 0:00:09]} Ke7 {
[%emt 0:02:23]} 79. Rh1 {[%emt 0:01:19]} Kd8 {[%emt 0:00:22]} 80. Rh3 {[%emt 0:
00:19]} Rd7 {[%emt 0:00:02]} 81. Bd2 {[%emt 0:00:30]} Kc7 {[%emt 0:00:37]} 82.
Be3 {[%emt 0:00:25]} Rd1 {[%emt 0:01:05]} 83. Bd2 {[%emt 0:00:37]} Rg1 {
[%emt 0:01:18]} 84. Kc2 {[%emt 0:01:10]} Rg2 {[%emt 0:00:39]} 85. Kd1 {[%emt 0:
00:28]} Rg3 {[%emt 0:00:30]} 86. Rxg3 {[%emt 0:00:34]} Nxg3 {[%emt 0:00:01]}
87. Be3 {[%emt 0:00:32]} Kb7 {[%emt 0:00:29]} 88. Kc2 {[%emt 0:00:18]} Nf5 {
[%emt 0:00:21]} 89. Bf2 {[%emt 0:00:15]} Ka6 {[%emt 0:00:37]} 90. Kd3 {[%emt 0:
00:11]} Ne7 {[%emt 0:00:18]} 91. Be3 {[%emt 0:00:05]} Nf5 {[%emt 0:01:47]} 92.
Bf2 {[%emt 0:00:08]} Kb7 {[%emt 0:00:39]} 93. Ke4 {[%emt 0:00:23]} Kc8 {
[%emt 0:00:28]} 94. Kd3 {[%emt 0:00:08]} Ne7 {[%emt 0:00:08]} 95. Be3 {[%emt 0:
00:07]} Nd5 {[%emt 0:00:10]} 96. Bd2 {[%emt 0:00:07]} Nc7 {[%emt 0:00:58]} 97.
Be3 {[%emt 0:00:14]} Kd7 {[%emt 0:01:23]} 98. Bd2 {[%emt 0:00:19]} Nd5 {
[%emt 0:00:16]} 99. Bc1 {[%emt 0:00:11]} Ne7 {[%emt 0:00:13]} 100. Be3 {
[%emt 0:00:21]} 1/2-1/2

[Event "African Championship"]
[Site "followchess.com"]
[Date "2021.05.24"]
[Round "6"]
[White "Adly, Ahmed"]
[Black "Amin, Bassem"]
[Result "1/2-1/2"]
[ECO "E69"]
[WhiteElo "2615"]
[BlackElo "2701"]
[PlyCount "111"]
[EventDate "2021.??.??"]
[TimeControl "7200+30"]
[WhiteClock "0:14:33"]
[BlackClock "0:36:04"]

1. d4 {[%emt 0:31:30]} Nf6 {[%emt 0:31:24]} 2. Nf3 {[%emt 0:00:04]} g6 {
[%emt 0:00:07]} 3. g3 {[%emt 0:00:11]} Bg7 {[%emt 0:00:07]} 4. Bg2 {[%emt 0:00:
07]} O-O {[%emt 0:00:12]} 5. c4 {[%emt 0:00:04]} d6 {[%emt 0:00:24]} 6. O-O {
[%emt 0:00:06]} Nbd7 {[%emt 0:00:15]} 7. Nc3 {[%emt 0:00:11]} e5 {[%emt 0:00:
08]} 8. h3 {[%emt 0:00:04]} c6 {[%emt 0:00:25]} 9. e4 {[%emt 0:00:05]} Qa5 {
[%emt 0:03:01]} 10. Re1 {[%emt 0:15:36]} Re8 {[%emt 0:03:03]} 11. d5 {[%emt 0:
09:58]} cxd5 {[%emt 0:01:37]} 12. cxd5 {[%emt 0:00:10]} b5 {[%emt 0:00:38]} 13.
a3 {[%emt 0:05:39]} Nb6 {[%emt 0:12:57]} 14. b4 {[%emt 0:03:25]} Qa6 {[%emt 0:
00:02]} 15. Bf1 {[%emt 0:00:04]} Bd7 {[%emt 0:00:50]} 16. a4 {[%emt 0:00:37]}
Nc4 {[%emt 0:03:03]} 17. Bg5 {[%emt 0:07:22]} Qc8 {[%emt 0:04:12]} 18. Nxb5 {
[%emt 0:03:56]} a6 {[%emt 0:00:45]} 19. Bxc4 {[%emt 0:00:27]} axb5 {[%emt 0:00:
24]} 20. Bxb5 {[%emt 0:00:02]} Bxb5 {[%emt 0:00:29]} 21. axb5 {[%emt 0:00:02]}
Qxh3 {[%emt 0:04:47]} 22. Ra6 {[%emt 0:05:38]} Ng4 {[%emt 0:03:38]} 23. Qa4 {
[%emt 0:02:18]} Rab8 {[%emt 0:01:39]} 24. b6 Rec8 {[%emt 0:05:04]} 25. Rc1 {
[%emt 0:03:04]} Rf8 {[%emt 0:14:46]} 26. Rc7 {[%emt 0:00:39]} Bf6 {[%emt 0:00:
33]} 27. Bxf6 {[%emt 0:11:47]} Nxf6 {[%emt 0:00:09]} 28. Qc2 {[%emt 0:01:57]}
Qg4 {[%emt 0:10:47]} 29. Nh2 {[%emt 0:02:10]} Qxe4 {[%emt 0:00:41]} 30. Qxe4 {
[%emt 0:00:02]} Nxe4 31. Ng4 {[%emt 0:00:01]} h5 {[%emt 0:04:22]} 32. Ne3 {
[%emt 0:00:06]} Nf6 33. b7 {[%emt 0:01:25]} Rfd8 {[%emt 0:07:18]} 34. Rac6 {
[%emt 0:00:31]} Kf8 {[%emt 0:00:13]} 35. Rc8 {[%emt 0:00:32]} Ke7 {[%emt 0:00:
48]} 36. R6c7+ {[%emt 0:00:27]} Nd7 {[%emt 0:00:16]} 37. Rxb8 {[%emt 0:06:32]}
Rxb8 {[%emt 0:00:01]} 38. Nc4 {[%emt 0:00:05]} Kd8 {[%emt 0:00:40]} 39. Rc8+ {
[%emt 0:00:04]} Rxc8 {[%emt 0:00:17]} 40. bxc8=Q+ Kxc8 {[%emt 0:00:00]} 41.
Nxd6+ {[%emt 0:00:00]} Kd8 {[%emt 0:00:00]} 42. Kg2 {[%emt 0:00:00]} Ke7 {
[%emt 0:00:00]} 43. Nc4 {[%emt 0:00:00]} Nf6 {[%emt 0:00:00]} 44. b5 {[%emt 0:
00:00]} Nxd5 {[%emt 0:00:00]} 45. b6 {[%emt 0:00:00]} Kd8 {[%emt 0:00:00]} 46.
b7 {[%emt 0:00:00]} Kc7 {[%emt 0:00:00]} 47. Nxe5 {[%emt 0:00:00]} g5 {[%emt 0:
02:01]} 48. Nxf7 {[%emt 0:00:00]} h4 {[%emt 0:00:50]} 49. g4 {[%emt 0:00:00]}
Nf4+ {[%emt 0:00:07]} 50. Kf3 {[%emt 0:00:00]} Ne6 {[%emt 0:00:44]} 51. Nd6 {
[%emt 0:00:00]} Nd4+ {[%emt 0:05:50]} 52. Ke3 {[%emt 0:00:00]} h3 {[%emt 0:02:
46]} 53. Ne4 {[%emt 0:00:00]} Nc6 {[%emt 0:00:14]} 54. f3 {[%emt 0:00:00]} h2 {
[%emt 0:00:18]} 55. Ng3 {[%emt 0:00:00]} Kxb7 {[%emt 0:00:05]} 56. Ke4 1/2-1/2

[Event "African Championship"]
[Site "followchess.com"]
[Date "2021.05.24"]
[Round "6"]
[White "Apemiye, Austin"]
[Black "Mwale, George"]
[Result "0-1"]
[ECO "E62"]
[WhiteElo "2076"]
[BlackElo "1982"]
[PlyCount "20"]
[EventDate "2021.??.??"]
[TimeControl "7200+30"]
[WhiteClock "1:31:30"]
[BlackClock "1:27:55"]

1. c4 {[%emt 0:29:34]} Nf6 {[%emt 0:31:10]} 2. g3 {[%emt 0:00:06]} g6 {[%emt 0:
00:08]} 3. Bg2 {[%emt 0:00:07]} Bg7 {[%emt 0:00:05]} 4. Nc3 {[%emt 0:00:07]}
O-O {[%emt 0:00:07]} 5. d4 {[%emt 0:01:03]} d6 {[%emt 0:00:07]} 6. Nf3 {
[%emt 0:00:34]} Nc6 {[%emt 0:00:07]} 7. d5 {[%emt 0:01:00]} Na5 {[%emt 0:00:10]
} 8. Qd3 {[%emt 0:01:38]} c5 {[%emt 0:00:08]} 9. O-O {[%emt 0:00:57]} a6 {
[%emt 0:00:05]} 10. Bf4 {[%emt 0:01:59]} b5 {[%emt 0:01:23]} 0-1

[Event "African Championship"]
[Site "followchess.com"]
[Date "2021.05.24"]
[Round "6"]
[White "Bwalya, Gillan"]
[Black "Methu, Joseph Muragu"]
[Result "1-0"]
[ECO "B49"]
[WhiteElo "2405"]
[BlackElo "2119"]
[PlyCount "32"]
[EventDate "2021.??.??"]
[TimeControl "7200+30"]
[WhiteClock "0:36:19"]
[BlackClock "0:48:21"]

1. e4 {[%emt 0:30:00]} c5 {[%emt 0:32:22]} 2. Nf3 {[%emt 0:00:00]} e6 {[%emt 0:
00:07]} 3. d4 {[%emt 0:00:05]} cxd4 {[%emt 0:00:05]} 4. Nxd4 {[%emt 0:00:02]}
Nc6 {[%emt 0:00:06]} 5. Be3 {[%emt 0:04:24]} Qc7 {[%emt 0:04:08]} 6. Nc3 {
[%emt 0:01:34]} a6 {[%emt 0:00:03]} 7. Be2 {[%emt 0:02:51]} Nf6 {[%emt 0:01:05]
} 8. a3 {[%emt 0:01:23]} b5 {[%emt 0:01:10]} 9. Nxc6 {[%emt 0:00:44]} dxc6 {
[%emt 0:00:07]} 10. O-O {[%emt 0:00:54]} Bb7 {[%emt 0:01:49]} 11. f4 {[%emt 0:
02:11]} Be7 {[%emt 0:05:46]} 12. Bf3 {[%emt 0:03:47]} e5 {[%emt 0:12:57]} 13.
g3 {[%emt 0:08:26]} h5 {[%emt 0:24:17]} 14. fxe5 {[%emt 0:01:02]} Qxe5 {
[%emt 0:00:27]} 15. Bf4 {[%emt 0:00:04]} Qe6 {[%emt 0:03:31]} 16. b4 {[%emt 0:
22:12]} Ng4 {[%emt 0:03:41]} 1-0

[Event "African Championship"]
[Site "followchess.com"]
[Date "2021.05.24"]
[Round "6"]
[White "Calicoca, Wilton Inacio"]
[Black "Wageih, Kareim"]
[Result "0-1"]
[ECO "B20"]
[WhiteElo "2122"]
[BlackElo "2425"]
[PlyCount "64"]
[EventDate "2021.??.??"]
[TimeControl "7200+30"]
[WhiteClock "0:13:46"]
[BlackClock "0:02:28"]

1. e4 {[%emt 0:29:44]} c5 {[%emt 0:30:03]} 2. Ne2 {[%emt 0:01:07]} e5 {[%emt 0:
03:57]} 3. Nbc3 {[%emt 0:01:56]} Nf6 {[%emt 0:02:12]} 4. g3 {[%emt 0:00:48]} d5
{[%emt 0:01:25]} 5. exd5 {[%emt 0:02:12]} Nxd5 {[%emt 0:00:08]} 6. Bg2 {
[%emt 0:00:26]} Be6 {[%emt 0:00:06]} 7. d3 {[%emt 0:02:29]} Nc6 {[%emt 0:00:10]
} 8. O-O {[%emt 0:04:18]} Be7 {[%emt 0:00:11]} 9. f4 {[%emt 0:04:04]} exf4 {
[%emt 0:01:02]} 10. Nxf4 {[%emt 0:02:02]} Nxf4 {[%emt 0:00:38]} 11. Bxf4 {
[%emt 0:03:16]} O-O {[%emt 0:01:39]} 12. Kh1 {[%emt 0:10:14]} Qd7 {[%emt 0:00:
39]} 13. Qd2 {[%emt 0:04:01]} Nd4 {[%emt 0:01:13]} 14. Rae1 {[%emt 0:02:19]}
Rae8 {[%emt 0:02:20]} 15. a4 {[%emt 0:02:57]} b6 {[%emt 0:01:07]} 16. b3 {
[%emt 0:01:50]} a6 {[%emt 0:01:56]} 17. Rf2 {[%emt 0:02:52]} b5 {[%emt 0:02:45]
} 18. axb5 {[%emt 0:04:42]} axb5 {[%emt 0:02:00]} 19. Ne2 {[%emt 0:08:47]} Nc6
{[%emt 0:02:02]} 20. Ng1 {[%emt 0:05:56]} Bf6 {[%emt 0:08:32]} 21. Nf3 {
[%emt 0:04:23]} Bd5 {[%emt 0:11:38]} 22. Be3 {[%emt 0:14:06]} b4 {[%emt 0:01:
03]} 23. Ref1 {[%emt 0:02:17]} Qe7 {[%emt 0:13:44]} 24. Bf4 {[%emt 0:00:43]}
Bc3 {[%emt 0:00:10]} 25. Qc1 {[%emt 0:00:40]} Ra8 {[%emt 0:02:31]} 26. Qe3 {
[%emt 0:01:17]} Qb7 {[%emt 0:07:48]} 27. Bd6 {[%emt 0:02:52]} Rfe8 {[%emt 0:02:
20]} 28. Qg5 {[%emt 0:00:35]} Nd4 {[%emt 0:03:49]} 29. Qg4 {[%emt 0:04:11]}
Nxf3 {[%emt 0:11:27]} 30. Bxf3 {[%emt 0:00:17]} Bd4 {[%emt 0:01:41]} 31. Rd2 {
[%emt 0:01:43]} Ra1 {[%emt 0:00:42]} 32. Rdf2 {[%emt 0:04:28]} Bxf2 {[%emt 0:
01:16]} 0-1

[Event "African Championship"]
[Site "followchess.com"]
[Date "2021.05.24"]
[Round "6"]
[White "Fawzy, Adham"]
[Black "Rakotomaharo, Fy Antenaina"]
[Result "1/2-1/2"]
[ECO "C45"]
[WhiteElo "2473"]
[BlackElo "2429"]
[PlyCount "61"]
[EventDate "2021.??.??"]
[TimeControl "7200+30"]
[WhiteClock "0:03:39"]
[BlackClock "0:28:22"]

1. e4 {[%emt 0:29:35]} e5 {[%emt 0:32:41]} 2. Nf3 {[%emt 0:00:30]} Nf6 {
[%emt 0:00:12]} 3. Nc3 {[%emt 0:00:49]} Nc6 {[%emt 0:00:05]} 4. d4 {[%emt 0:00:
03]} exd4 {[%emt 0:01:21]} 5. Nxd4 {[%emt 0:00:43]} Bb4 {[%emt 0:00:04]} 6.
Nxc6 {[%emt 0:00:40]} bxc6 {[%emt 0:00:04]} 7. Bd3 {[%emt 0:00:13]} d5 {
[%emt 0:00:05]} 8. exd5 {[%emt 0:02:16]} O-O {[%emt 0:00:05]} 9. O-O {[%emt 0:
00:16]} cxd5 {[%emt 0:01:15]} 10. Qf3 {[%emt 0:01:12]} Bd6 {[%emt 0:09:36]} 11.
Bg5 {[%emt 0:06:24]} c6 {[%emt 0:00:10]} 12. Rfe1 {[%emt 0:01:55]} Rb8 {
[%emt 0:03:11]} 13. Rab1 {[%emt 0:01:12]} Be6 {[%emt 0:16:34]} 14. Ne2 {
[%emt 0:09:07]} Bg4 {[%emt 0:02:39]} 15. Qe3 {[%emt 0:02:31]} h6 {[%emt 0:15:
00]} 16. Bh4 {[%emt 0:03:38]} Re8 {[%emt 0:01:31]} 17. Qxa7 {[%emt 0:03:50]} c5
{[%emt 0:01:14]} 18. Nc3 {[%emt 0:02:21]} Rxe1+ {[%emt 0:07:26]} 19. Rxe1 {
[%emt 0:00:56]} g5 {[%emt 0:00:22]} 20. Bg3 {[%emt 0:00:04]} c4 {[%emt 0:05:52]
} 21. Bf1 {[%emt 0:04:00]} Bxg3 {[%emt 0:03:03]} 22. hxg3 {[%emt 0:00:24]} Rxb2
{[%emt 0:00:08]} 23. Qd4 {[%emt 0:06:19]} Qb6 {[%emt 0:07:16]} 24. Qd2 {
[%emt 0:03:04]} Qa5 {[%emt 0:12:43]} 25. Re5 {[%emt 0:00:37]} Rxa2 {[%emt 0:03:
15]} 26. Rxg5+ {[%emt 0:01:59]} hxg5 {[%emt 0:01:02]} 27. Qxg5+ {[%emt 0:00:02]
} Kf8 {[%emt 0:00:43]} 28. Nxa2 {[%emt 0:00:51]} Ne4 {[%emt 0:03:23]} 29. Qxg4
{[%emt 0:16:46]} Qxa2 {[%emt 0:00:03]} 30. Qe2 {[%emt 0:00:02]} Qa7 {[%emt 0:
00:18]} 31. g4 {[%emt 0:04:49]} 1/2-1/2

[Event "African Championship"]
[Site "followchess.com"]
[Date "2021.05.24"]
[Round "6"]
[White "Kawuma, Patrick"]
[Black "Mwali, Chitumbo"]
[Result "1-0"]
[ECO "A28"]
[WhiteElo "2323"]
[BlackElo "2285"]
[PlyCount "79"]
[EventDate "2021.??.??"]
[TimeControl "7200+30"]
[WhiteClock "0:00:37"]
[BlackClock "0:33:49"]

1. c4 {[%emt 0:30:28]} e5 {[%emt 0:30:42]} 2. Nc3 {[%emt 0:00:05]} Nf6 {
[%emt 0:01:29]} 3. Nf3 {[%emt 0:00:36]} Nc6 {[%emt 0:01:45]} 4. e3 {[%emt 0:00:
16]} d5 5. cxd5 {[%emt 0:00:08]} Nxd5 {[%emt 0:07:23]} 6. Bb5 {[%emt 0:00:05]}
Nxc3 {[%emt 0:03:36]} 7. bxc3 {[%emt 0:00:06]} Bd6 {[%emt 0:01:25]} 8. d4 {
[%emt 0:00:28]} e4 {[%emt 0:37:40]} 9. Nd2 {[%emt 0:00:17]} Qg5 {[%emt 0:03:25]
} 10. Bf1 {[%emt 0:00:10]} Bf5 {[%emt 0:03:47]} 11. Rb1 Rb8 {[%emt 0:09:22]}
12. g3 {[%emt 0:09:18]} O-O {[%emt 0:03:44]} 13. Bg2 {[%emt 0:00:07]} Rfe8 {
[%emt 0:00:24]} 14. O-O {[%emt 0:05:55]} b6 {[%emt 0:05:40]} 15. Qa4 {[%emt 0:
04:41]} Na5 {[%emt 0:01:27]} 16. c4 {[%emt 0:30:50]} Qd8 {[%emt 0:05:59]} 17.
Bb2 {[%emt 0:07:57]} c5 {[%emt 0:03:48]} 18. d5 {[%emt 0:08:04]} Bd7 {[%emt 0:
00:49]} 19. Qa3 {[%emt 0:02:47]} b5 {[%emt 0:03:38]} 20. Bxe4 {[%emt 0:00:36]}
Nxc4 {[%emt 0:02:43]} 21. Nxc4 {[%emt 0:00:16]} bxc4 {[%emt 0:00:04]} 22. Bg2 {
[%emt 0:10:20]} Rb4 {[%emt 0:01:08]} 23. Bc3 {[%emt 0:01:49]} Qb6 {[%emt 0:00:
13]} 24. Qc1 {[%emt 0:03:28]} Qa6 {[%emt 0:00:38]} 25. e4 {[%emt 0:01:16]} f6 {
[%emt 0:01:03]} 26. f4 {[%emt 0:00:42]} Rxb1 {[%emt 0:00:29]} 27. Qxb1 {
[%emt 0:00:09]} Qa3 {[%emt 0:00:29]} 28. Qa1 {[%emt 0:02:29]} h6 {[%emt 0:00:
38]} 29. Re1 {[%emt 0:02:22]} Bf8 {[%emt 0:00:26]} 30. e5 {[%emt 0:00:12]} fxe5
{[%emt 0:00:09]} 31. fxe5 {[%emt 0:00:14]} Bf5 {[%emt 0:00:05]} 32. Qb2 {
[%emt 0:02:07]} Qa6 {[%emt 0:00:45]} 33. Be4 {[%emt 0:02:12]} Bxe4 {[%emt 0:00:
34]} 34. Rxe4 {[%emt 0:00:03]} Qg6 {[%emt 0:00:28]} 35. Qe2 {[%emt 0:00:23]}
Rb8 {[%emt 0:00:10]} 36. e6 {[%emt 0:01:24]} Rb1+ {[%emt 0:00:02]} 37. Kg2 {
[%emt 0:01:07]} Rc1 {[%emt 0:01:49]} 38. Bxg7 {[%emt 0:01:56]} Bxg7 {[%emt 0:
00:32]} 39. e7 {[%emt 0:00:38]} Qe8 {[%emt 0:00:25]} 40. d6 {[%emt 0:00:00]}
1-0